[Event "*** Titled Tuesday Blitz"]
[Site "Chess.com"]
[Date "2020.04.28"]
[Round "4"]
[White "mishanick"]
[Black "GMSrinath"]
[Result "1-0"]
[WhiteElo "3030"]
[BlackElo "2742"]
[TimeControl "180+1"]
[EndTime "10:37:49 PDT"]
[Termination "mishanick won by resignation"]

1. d4 {[%clk 0:03:00.9]} 1... Nf6 {[%clk 0:03:00.5]} 2. c4 {[%clk 0:03:00.1]}
2... e6 {[%clk 0:03:01.1]} 3. Nf3 {[%clk 0:03:00]} 3... d5 {[%clk 0:03:01.7]} 4.
Nc3 {[%clk 0:03:00.2]} 4... Bb4 {[%clk 0:03:02.4]} 5. Bg5 {[%clk 0:03:00.4]}
5... h6 {[%clk 0:03:02.4]} 6. Bxf6 {[%clk 0:03:00.7]} 6... Qxf6 {[%clk
0:03:03.3]} 7. Qb3 {[%clk 0:03:01.1]} 7... c5 {[%clk 0:02:56.6]} 8. cxd5 {[%clk
0:03:00.4]} 8... exd5 {[%clk 0:02:57.5]} 9. e3 {[%clk 0:03:01]} 9... Nc6 {[%clk
0:02:35.3]} 10. Bb5 {[%clk 0:02:59.9]} 10... O-O {[%clk 0:02:20.1]} 11. dxc5
{[%clk 0:02:58]} 11... d4 {[%clk 0:02:01.8]} 12. Bxc6 {[%clk 0:02:57.3]} 12...
dxc3 {[%clk 0:02:00.8]} 13. Qxb4 {[%clk 0:02:57.5]} 13... cxb2 {[%clk
0:01:58.4]} 14. Rb1 {[%clk 0:02:57.5]} 14... bxc6 {[%clk 0:01:57.1]} 15. O-O
{[%clk 0:02:47.8]} 15... Ba6 {[%clk 0:01:56]} 16. Rfe1 {[%clk 0:02:43.1]} 16...
Rab8 {[%clk 0:01:48.1]} 17. Qa3 {[%clk 0:02:42.7]} 17... Bc4 {[%clk 0:01:48.3]}
18. Nd4 {[%clk 0:02:42.5]} 18... Qg5 {[%clk 0:01:23.2]} 19. Rxb2 {[%clk
0:02:36]} 19... Rxb2 {[%clk 0:01:22.1]} 20. Qxb2 {[%clk 0:02:36.9]} 20... Qxc5
{[%clk 0:01:22.6]} 21. Qc3 {[%clk 0:02:08]} 21... Qd5 {[%clk 0:01:09.2]} 22. e4
{[%clk 0:01:47.2]} 22... Qc5 {[%clk 0:01:09.5]} 23. Rc1 {[%clk 0:01:40.4]} 23...
Rd8 {[%clk 0:01:09.1]} 24. Nf5 {[%clk 0:01:40.3]} 24... f6 {[%clk 0:01:07.3]}
25. Ne3 {[%clk 0:01:37.7]} 1-0

[Event "*** Titled Tuesday Blitz"]
[Site "Chess.com"]
[Date "2020.04.28"]
[Round "4"]
[White "adiosabu"]
[Black "mohssenbinaddi"]
[Result "1-0"]
[WhiteElo "2414"]
[BlackElo "2141"]
[TimeControl "180+1"]
[EndTime "10:37:50 PDT"]
[Termination "adiosabu won by resignation"]

1. e4 {[%clk 0:03:00.9]} 1... c6 {[%clk 0:02:59.8]} 2. d4 {[%clk 0:03:00.4]}
2... d5 {[%clk 0:03:00.7]} 3. Nc3 {[%clk 0:03:00.1]} 3... dxe4 {[%clk
0:03:00.6]} 4. Nxe4 {[%clk 0:03:01]} 4... Bf5 {[%clk 0:03:01.1]} 5. Ng3 {[%clk
0:03:00.5]} 5... Bg6 {[%clk 0:03:01.6]} 6. h4 {[%clk 0:03:01.1]} 6... h6 {[%clk
0:03:01.8]} 7. N1e2 {[%clk 0:03:01.6]} 7... e6 {[%clk 0:02:52.9]} 8. Nf4 {[%clk
0:02:59.8]} 8... Bh7 {[%clk 0:02:53.2]} 9. Bc4 {[%clk 0:03:00.4]} 9... Nf6
{[%clk 0:02:50.6]} 10. Qe2 {[%clk 0:02:58.1]} 10... Nd5 {[%clk 0:02:50.3]} 11.
c3 {[%clk 0:02:46.1]} 11... Nxf4 {[%clk 0:02:48.7]} 12. Bxf4 {[%clk 0:02:45]}
12... Bd6 {[%clk 0:02:43.3]} 13. Be5 {[%clk 0:02:38]} 13... Bxe5 {[%clk
0:02:38.9]} 14. Qxe5 {[%clk 0:02:37.7]} 14... O-O {[%clk 0:02:38.9]} 15. Nh5
{[%clk 0:02:36.2]} 15... f6 {[%clk 0:02:22.3]} 16. Qxe6+ {[%clk 0:02:33.9]}
16... Kh8 {[%clk 0:02:22]} 17. O-O-O {[%clk 0:02:27]} 17... b5 {[%clk
0:02:05.2]} 18. Bb3 {[%clk 0:02:24.3]} 18... a5 {[%clk 0:02:04.9]} 19. Rhe1
{[%clk 0:02:07.9]} 19... a4 {[%clk 0:02:04.2]} 20. Bc2 {[%clk 0:02:07.8]} 20...
Bxc2 {[%clk 0:01:54.5]} 21. Kxc2 {[%clk 0:02:07.4]} 21... a3 {[%clk 0:01:52.8]}
22. Nf4 {[%clk 0:02:04.1]} 22... axb2 {[%clk 0:01:41.8]} 23. Ng6+ {[%clk
0:02:02.9]} 23... Kh7 {[%clk 0:01:41.3]} 24. Nxf8+ {[%clk 0:01:40]} 24... Qxf8
{[%clk 0:01:41.1]} 25. Qe4+ {[%clk 0:01:37]} 25... Kh8 {[%clk 0:01:40.6]} 26.
Qe8 {[%clk 0:01:34]} 26... Nd7 {[%clk 0:01:33.2]} 27. Qxd7 {[%clk 0:01:24.3]}
1-0

[Event "*** Titled Tuesday Blitz"]
[Site "Chess.com"]
[Date "2020.04.28"]
[Round "4"]
[White "inegrepus"]
[Black "GM_LOADING"]
[Result "0-1"]
[WhiteElo "2272"]
[BlackElo "2600"]
[TimeControl "180+1"]
[EndTime "10:37:55 PDT"]
[Termination "GM_LOADING won by resignation"]

1. d4 {[%clk 0:03:00.9]} 1... Nf6 {[%clk 0:02:59.8]} 2. c4 {[%clk 0:03:00.5]}
2... e6 {[%clk 0:03:00.2]} 3. g3 {[%clk 0:02:59.8]} 3... Bb4+ {[%clk 0:03:00.3]}
4. Nd2 {[%clk 0:02:59.1]} 4... O-O {[%clk 0:02:59.1]} 5. Bg2 {[%clk 0:02:58.2]}
5... d6 {[%clk 0:02:59.6]} 6. Nf3 {[%clk 0:02:58]} 6... Nbd7 {[%clk 0:02:59.7]}
7. O-O {[%clk 0:02:57.9]} 7... e5 {[%clk 0:02:56.5]} 8. Nb3 {[%clk 0:02:56.5]}
8... exd4 {[%clk 0:02:53.6]} 9. Qxd4 {[%clk 0:02:53.9]} 9... a5 {[%clk
0:02:50.5]} 10. a3 {[%clk 0:02:52.6]} 10... Bc5 {[%clk 0:02:50.9]} 11. Nxc5
{[%clk 0:02:52.7]} 11... Nxc5 {[%clk 0:02:51.6]} 12. Bg5 {[%clk 0:02:50]} 12...
Nb3 {[%clk 0:02:22.7]} 13. Bxf6 {[%clk 0:02:33]} 13... gxf6 {[%clk 0:02:20.3]}
14. Qh4 {[%clk 0:02:12.5]} 14... Nxa1 {[%clk 0:02:19.8]} 15. Rxa1 {[%clk
0:02:11.1]} 15... a4 {[%clk 0:02:06.8]} 16. Nd4 {[%clk 0:02:09.3]} 16... c6
{[%clk 0:01:56.3]} 17. Be4 {[%clk 0:01:54.7]} 17... f5 {[%clk 0:01:55.9]} 18.
Qxd8 {[%clk 0:01:54.6]} 18... Rxd8 {[%clk 0:01:55.7]} 19. Nxf5 {[%clk
0:01:54.4]} 19... Bxf5 {[%clk 0:01:55]} 20. Bxf5 {[%clk 0:01:55.3]} 20... Re8
{[%clk 0:01:55]} 21. e3 {[%clk 0:01:50.4]} 21... Rad8 {[%clk 0:01:53.9]} 22. Rc1
{[%clk 0:01:31.3]} 22... d5 {[%clk 0:01:53.6]} 23. cxd5 {[%clk 0:01:15]} 23...
Rxd5 {[%clk 0:01:52.7]} 24. g4 {[%clk 0:01:11.9]} 24... Red8 {[%clk 0:01:50.2]}
25. Rc4 {[%clk 0:01:11.6]} 25... Rd2 {[%clk 0:01:49]} 26. Rxa4 {[%clk
0:01:10.3]} 26... Rxb2 {[%clk 0:01:48.7]} 27. Rf4 {[%clk 0:01:05.1]} 27... Ra2
{[%clk 0:01:48.2]} 28. a4 {[%clk 0:01:05.2]} 28... Ra8 {[%clk 0:01:47.3]} 0-1

[Event "*** Titled Tuesday Blitz"]
[Site "Chess.com"]
[Date "2020.04.28"]
[Round "4"]
[White "semchik73"]
[Black "BasilSmash"]
[Result "0-1"]
[WhiteElo "2228"]
[BlackElo "2435"]
[TimeControl "180+1"]
[EndTime "10:37:56 PDT"]
[Termination "BasilSmash won by resignation"]

1. Nf3 {[%clk 0:03:00.5]} 1... d5 {[%clk 0:02:57.1]} 2. c4 {[%clk 0:03:00.7]}
2... e6 {[%clk 0:02:56.1]} 3. d4 {[%clk 0:03:00.3]} 3... Nf6 {[%clk 0:02:51.4]}
4. Nc3 {[%clk 0:03:00.4]} 4... Be7 {[%clk 0:02:46.8]} 5. Bg5 {[%clk 0:02:59.2]}
5... Nbd7 {[%clk 0:02:46.5]} 6. e3 {[%clk 0:02:58.7]} 6... h6 {[%clk 0:02:46.3]}
7. Bh4 {[%clk 0:02:58.2]} 7... O-O {[%clk 0:02:44.2]} 8. Bd3 {[%clk 0:02:57.6]}
8... c5 {[%clk 0:02:41.1]} 9. O-O {[%clk 0:02:54.3]} 9... b6 {[%clk 0:02:38.9]}
10. cxd5 {[%clk 0:02:47.1]} 10... Nxd5 {[%clk 0:02:36.7]} 11. Bxe7 {[%clk
0:02:45.7]} 11... Qxe7 {[%clk 0:02:37.5]} 12. e4 {[%clk 0:02:45.7]} 12... Nxc3
{[%clk 0:02:36.8]} 13. bxc3 {[%clk 0:02:45.8]} 13... Bb7 {[%clk 0:02:37]} 14.
Re1 {[%clk 0:02:42.3]} 14... Rac8 {[%clk 0:02:35]} 15. Rc1 {[%clk 0:02:41.1]}
15... cxd4 {[%clk 0:02:22.7]} 16. cxd4 {[%clk 0:02:41]} 16... Qa3 {[%clk
0:02:22.2]} 17. Qb3 {[%clk 0:02:32]} 17... Qxb3 {[%clk 0:02:14.8]} 18. axb3
{[%clk 0:02:30.9]} 18... Rfd8 {[%clk 0:02:14.6]} 19. Bb5 {[%clk 0:02:27.4]}
19... Nf6 {[%clk 0:02:12.5]} 20. e5 {[%clk 0:02:21.4]} 20... Nd5 {[%clk
0:02:03.5]} 21. Nd2 {[%clk 0:02:03.5]} 21... Nc3 {[%clk 0:01:53.3]} 22. Nc4
{[%clk 0:02:02.9]} 22... Nxb5 {[%clk 0:01:48]} 23. Rcd1 {[%clk 0:01:57.2]} 23...
Rxd4 {[%clk 0:01:41.5]} 24. Rxd4 {[%clk 0:01:55.5]} 24... Nxd4 {[%clk
0:01:42.4]} 25. Nd6 {[%clk 0:01:55.9]} 25... Rc7 {[%clk 0:01:31.5]} 26. f3
{[%clk 0:01:55.9]} 26... Nxb3 {[%clk 0:01:25.9]} 27. Rb1 {[%clk 0:01:54]} 27...
Bd5 {[%clk 0:01:24.6]} 28. f4 {[%clk 0:01:50.3]} 28... a5 {[%clk 0:01:23.5]} 29.
f5 {[%clk 0:01:50.1]} 29... a4 {[%clk 0:01:20.7]} 30. f6 {[%clk 0:01:45]} 30...
Rc1+ {[%clk 0:01:15.1]} 31. Rxc1 {[%clk 0:01:43.8]} 31... Nxc1 {[%clk
0:01:15.8]} 0-1

[Event "*** Titled Tuesday Blitz"]
[Site "Chess.com"]
[Date "2020.04.28"]
[Round "4"]
[White "TheBigBoss04"]
[Black "almaguerjm"]
[Result "1-0"]
[WhiteElo "2726"]
[BlackElo "2359"]
[TimeControl "180+1"]
[EndTime "10:37:59 PDT"]
[Termination "TheBigBoss04 won by resignation"]

1. d4 {[%clk 0:03:00.9]} 1... Nf6 {[%clk 0:02:56.9]} 2. Nf3 {[%clk 0:03:01.1]}
2... g6 {[%clk 0:02:54.9]} 3. b3 {[%clk 0:02:57.2]} 3... Bg7 {[%clk 0:02:54.9]}
4. Bb2 {[%clk 0:02:57.5]} 4... O-O {[%clk 0:02:55]} 5. e3 {[%clk 0:02:58.1]}
5... d5 {[%clk 0:02:53.2]} 6. Be2 {[%clk 0:02:57.1]} 6... h6 {[%clk 0:02:41.1]}
7. O-O {[%clk 0:02:55.2]} 7... Ne4 {[%clk 0:02:41.2]} 8. c4 {[%clk 0:02:31.4]}
8... e6 {[%clk 0:02:38.8]} 9. Nc3 {[%clk 0:02:30.4]} 9... f5 {[%clk 0:02:37.3]}
10. Ne5 {[%clk 0:02:27.8]} 10... c6 {[%clk 0:02:29.7]} 11. Nxg6 {[%clk
0:02:27.4]} 11... Rf7 {[%clk 0:02:26.4]} 12. Ne5 {[%clk 0:02:27.2]} 12... Bxe5
{[%clk 0:02:24.1]} 13. dxe5 {[%clk 0:02:28.1]} 13... Rg7 {[%clk 0:02:23.2]} 14.
Nxe4 {[%clk 0:02:20.8]} 14... fxe4 {[%clk 0:02:21.5]} 15. f4 {[%clk 0:02:14.5]}
15... exf3 {[%clk 0:02:18.7]} 16. Rxf3 {[%clk 0:02:11.6]} 16... Nd7 {[%clk
0:02:16.6]} 17. Qc2 {[%clk 0:02:03.8]} 17... h5 {[%clk 0:01:51.2]} 18. Raf1
{[%clk 0:02:02.4]} 18... h4 {[%clk 0:01:51.4]} 19. Rf6 {[%clk 0:01:54.8]} 19...
b6 {[%clk 0:01:34.1]} 20. Rxe6 {[%clk 0:01:47.9]} 20... Bb7 {[%clk 0:01:19.6]}
21. Rg6 {[%clk 0:01:25.4]} 21... d4 {[%clk 0:01:00.4]} 22. Rxg7+ {[%clk
0:01:23.3]} 22... Kxg7 {[%clk 0:01:00.3]} 23. Bxd4 {[%clk 0:01:20.6]} 23... c5
{[%clk 0:01:00.5]} 24. e6+ {[%clk 0:01:20.3]} 24... cxd4 {[%clk 0:00:59.8]} 25.
Rf7+ {[%clk 0:01:21]} 1-0

[Event "*** Titled Tuesday Blitz"]
[Site "Chess.com"]
[Date "2020.04.28"]
[Round "4"]
[White "FROGGY64"]
[Black "IsaacWiebe"]
[Result "1-0"]
[WhiteElo "2442"]
[BlackElo "2177"]
[TimeControl "180+1"]
[EndTime "10:37:59 PDT"]
[Termination "FROGGY64 won by resignation"]

1. d4 {[%clk 0:03:00.9]} 1... d5 {[%clk 0:02:56.3]} 2. c4 {[%clk 0:03:00.3]}
2... dxc4 {[%clk 0:02:55.3]} 3. Nf3 {[%clk 0:02:59.7]} 3... a6 {[%clk
0:02:54.2]} 4. a4 {[%clk 0:02:58.6]} 4... Nf6 {[%clk 0:02:49.8]} 5. e3 {[%clk
0:02:58.6]} 5... Bg4 {[%clk 0:02:48.8]} 6. Bxc4 {[%clk 0:02:58.9]} 6... e6
{[%clk 0:02:49.2]} 7. O-O {[%clk 0:02:58.9]} 7... Nc6 {[%clk 0:02:44.3]} 8. Nbd2
{[%clk 0:02:57.3]} 8... Bd6 {[%clk 0:02:40.6]} 9. b3 {[%clk 0:02:52.8]} 9... O-O
{[%clk 0:02:39.4]} 10. h3 {[%clk 0:02:52.6]} 10... Bh5 {[%clk 0:02:37.4]} 11.
Bb2 {[%clk 0:02:53.1]} 11... Qe8 {[%clk 0:02:30.8]} 12. Be2 {[%clk 0:02:52.5]}
12... e5 {[%clk 0:02:27.4]} 13. dxe5 {[%clk 0:02:38.5]} 13... Nxe5 {[%clk
0:02:26.9]} 14. Nd4 {[%clk 0:02:33.8]} 14... Bxe2 {[%clk 0:02:26.4]} 15. Qxe2
{[%clk 0:02:34]} 15... Qd7 {[%clk 0:01:36.5]} 16. Rac1 {[%clk 0:02:32.1]} 16...
Rfe8 {[%clk 0:01:28.8]} 17. N2f3 {[%clk 0:02:30.3]} 17... Nxf3+ {[%clk
0:01:27.1]} 18. Nxf3 {[%clk 0:02:30.2]} 18... Ne4 {[%clk 0:00:56.5]} 19. Rfd1
{[%clk 0:02:27.2]} 19... Rad8 {[%clk 0:00:51.8]} 20. Nd4 {[%clk 0:02:16.1]}
20... Nf6 {[%clk 0:00:10.5]} 21. Qf3 {[%clk 0:02:14.5]} 21... c6 {[%clk
0:00:10.3]} 22. Nf5 {[%clk 0:02:13.9]} 22... Nd5 {[%clk 0:00:06.9]} 23. Nxg7
{[%clk 0:02:13.5]} 1-0

[Event "*** Titled Tuesday Blitz"]
[Site "Chess.com"]
[Date "2020.04.28"]
[Round "4"]
[White "JozefKneht"]
[Black "chessuriel"]
[Result "1-0"]
[WhiteElo "2426"]
[BlackElo "2211"]
[TimeControl "180+1"]
[EndTime "10:38:02 PDT"]
[Termination "JozefKneht won by resignation"]

1. e4 {[%clk 0:03:00.9]} 1... c5 {[%clk 0:02:59.5]} 2. Nf3 {[%clk 0:02:58.3]}
2... e6 {[%clk 0:03:00.4]} 3. d4 {[%clk 0:02:57.4]} 3... cxd4 {[%clk 0:03:01.3]}
4. Nxd4 {[%clk 0:02:57.6]} 4... Nc6 {[%clk 0:03:01.5]} 5. Nc3 {[%clk 0:02:56.9]}
5... Qc7 {[%clk 0:03:01.5]} 6. Be2 {[%clk 0:02:56.6]} 6... Nf6 {[%clk
0:03:00.2]} 7. O-O {[%clk 0:02:56.8]} 7... a6 {[%clk 0:02:59.3]} 8. Kh1 {[%clk
0:02:56.9]} 8... Bb4 {[%clk 0:02:58.5]} 9. Nxc6 {[%clk 0:02:55]} 9... bxc6
{[%clk 0:02:58.2]} 10. f4 {[%clk 0:02:55.4]} 10... Bxc3 {[%clk 0:02:52.9]} 11.
bxc3 {[%clk 0:02:56.3]} 11... Nxe4 {[%clk 0:02:52.1]} 12. Qd4 {[%clk 0:02:56.2]}
12... Nf6 {[%clk 0:02:50.8]} 13. Ba3 {[%clk 0:02:56.4]} 13... d5 {[%clk
0:02:38.3]} 14. c4 {[%clk 0:02:56.2]} 14... Bb7 {[%clk 0:02:28.4]} 15. Rab1
{[%clk 0:02:54]} 15... Rd8 {[%clk 0:02:25.5]} 16. Bc5 {[%clk 0:02:45.7]} 16...
Nd7 {[%clk 0:01:58.4]} 17. Qxg7 {[%clk 0:02:43]} 17... Nxc5 {[%clk 0:01:52.7]}
18. Qxh8+ {[%clk 0:02:41.8]} 18... Ke7 {[%clk 0:01:52.9]} 19. Qd4 {[%clk
0:02:26.6]} 19... Ne4 {[%clk 0:01:49]} 20. c5 {[%clk 0:02:05.9]} 20... Rg8
{[%clk 0:01:38.6]} 21. Bf3 {[%clk 0:02:05.7]} 21... Nf6 {[%clk 0:01:37.2]} 22.
Rfe1 {[%clk 0:01:57.6]} 22... Bc8 {[%clk 0:01:36.8]} 23. c4 {[%clk 0:01:53.8]}
23... Rg6 {[%clk 0:01:24.6]} 24. h3 {[%clk 0:01:46.7]} 24... Qd8 {[%clk
0:01:19.7]} 25. f5 {[%clk 0:01:45]} 25... Rg5 {[%clk 0:01:16.2]} 26. fxe6 {[%clk
0:01:42.7]} 26... Bxe6 {[%clk 0:01:13.1]} 27. Rb7+ {[%clk 0:01:37]} 27... Kf8
{[%clk 0:01:11.5]} 28. Qf4 {[%clk 0:01:34.1]} 28... Rf5 {[%clk 0:01:05.5]} 29.
Qh6+ {[%clk 0:01:28.1]} 29... Kg8 {[%clk 0:01:05.8]} 30. Rxe6 {[%clk 0:01:23.4]}
1-0

[Event "*** Titled Tuesday Blitz"]
[Site "Chess.com"]
[Date "2020.04.28"]
[Round "4"]
[White "ehrenfeld"]
[Black "Vincent_Vega95"]
[Result "1-0"]
[WhiteElo "2504"]
[BlackElo "2681"]
[TimeControl "180+1"]
[EndTime "10:38:10 PDT"]
[Termination "ehrenfeld won by resignation"]

1. e4 {[%clk 0:03:00.9]} 1... c5 {[%clk 0:02:59.7]} 2. d3 {[%clk 0:03:00.8]}
2... d6 {[%clk 0:03:00.3]} 3. f4 {[%clk 0:03:00.9]} 3... g6 {[%clk 0:02:59.8]}
4. Nf3 {[%clk 0:03:01.3]} 4... Bg7 {[%clk 0:02:59.9]} 5. Be2 {[%clk 0:03:01.8]}
5... Nc6 {[%clk 0:02:59.7]} 6. O-O {[%clk 0:03:02.2]} 6... e5 {[%clk 0:02:59.8]}
7. c3 {[%clk 0:03:01.7]} 7... Nge7 {[%clk 0:02:58.9]} 8. Na3 {[%clk 0:03:01.2]}
8... O-O {[%clk 0:02:57.8]} 9. Qe1 {[%clk 0:03:01]} 9... f5 {[%clk 0:02:52.8]}
10. Qh4 {[%clk 0:02:54.1]} 10... h6 {[%clk 0:02:38.1]} 11. fxe5 {[%clk
0:02:52.3]} 11... fxe4 {[%clk 0:02:16.7]} 12. dxe4 {[%clk 0:02:46.5]} 12... Rxf3
{[%clk 0:01:48.3]} 13. gxf3 {[%clk 0:02:36.8]} 13... g5 {[%clk 0:01:45.3]} 14.
Qg3 {[%clk 0:02:31.8]} 14... Nxe5 {[%clk 0:01:38.6]} 15. f4 {[%clk 0:02:27.8]}
15... gxf4 {[%clk 0:01:36.4]} 16. Bxf4 {[%clk 0:02:27.7]} 16... N7g6 {[%clk
0:01:35.4]} 17. Nc4 {[%clk 0:01:54.5]} 17... Kh7 {[%clk 0:00:33.8]} 18. Rad1
{[%clk 0:01:41.2]} 18... Nxc4 {[%clk 0:00:23.1]} 19. Bxc4 {[%clk 0:01:39]} 1-0

[Event "*** Titled Tuesday Blitz"]
[Site "Chess.com"]
[Date "2020.04.28"]
[Round "4"]
[White "XiaoKangZhong"]
[Black "monstertube"]
[Result "1-0"]
[WhiteElo "2360"]
[BlackElo "2140"]
[TimeControl "180+1"]
[EndTime "10:38:12 PDT"]
[Termination "XiaoKangZhong won by resignation"]

1. e4 {[%clk 0:03:00.9]} 1... e5 {[%clk 0:02:59.6]} 2. Nf3 {[%clk 0:03:00.8]}
2... Nf6 {[%clk 0:02:59]} 3. Nxe5 {[%clk 0:02:59.9]} 3... d6 {[%clk 0:02:59.3]}
4. Nf3 {[%clk 0:03:00.1]} 4... Nxe4 {[%clk 0:02:59.5]} 5. Nc3 {[%clk 0:03:00.7]}
5... Nxc3 {[%clk 0:02:58.8]} 6. dxc3 {[%clk 0:03:01.6]} 6... Be7 {[%clk
0:02:57.6]} 7. Bd3 {[%clk 0:03:01]} 7... Nd7 {[%clk 0:02:57]} 8. Be3 {[%clk
0:03:00.4]} 8... Nc5 {[%clk 0:02:56.4]} 9. Bxc5 {[%clk 0:02:50.9]} 9... dxc5
{[%clk 0:02:57.2]} 10. O-O {[%clk 0:02:51]} 10... Bg4 {[%clk 0:02:55.9]} 11. h3
{[%clk 0:02:50.3]} 11... Bh5 {[%clk 0:02:48.8]} 12. Qe2 {[%clk 0:02:49.5]} 12...
O-O {[%clk 0:02:47.2]} 13. Rfe1 {[%clk 0:02:47.4]} 13... Bd6 {[%clk 0:02:45.7]}
14. Qe4 {[%clk 0:02:43]} 14... Bg6 {[%clk 0:02:41.8]} 15. Qxb7 {[%clk
0:02:40.9]} 15... Rb8 {[%clk 0:02:33]} 16. Qxa7 {[%clk 0:02:39.7]} 16... Rxb2
{[%clk 0:02:32.9]} 17. Qa3 {[%clk 0:02:35.5]} 17... Rb8 {[%clk 0:02:31.8]} 18.
Qc1 {[%clk 0:02:35.5]} 18... Ra8 {[%clk 0:02:25.6]} 19. c4 {[%clk 0:02:34.7]}
19... Qd7 {[%clk 0:02:25.3]} 20. Qe3 {[%clk 0:02:30]} 20... Ra3 {[%clk
0:02:20.2]} 21. Ne5 {[%clk 0:02:24.7]} 21... Bxe5 {[%clk 0:02:14.4]} 22. Qxe5
{[%clk 0:02:25.6]} 22... Bxd3 {[%clk 0:02:12.3]} 23. cxd3 {[%clk 0:02:16.7]}
23... Rxd3 {[%clk 0:02:12.7]} 24. Qxc5 {[%clk 0:02:16.3]} 24... Rd2 {[%clk
0:02:11]} 25. Re7 {[%clk 0:02:09.2]} 25... Qa4 {[%clk 0:01:58.8]} 26. Rxc7
{[%clk 0:01:51.4]} 26... Rxa2 {[%clk 0:01:58.1]} 27. Rxa2 {[%clk 0:01:49.2]}
27... Qxa2 {[%clk 0:01:59]} 28. Rc8 {[%clk 0:01:49.8]} 1-0

[Event "*** Titled Tuesday Blitz"]
[Site "Chess.com"]
[Date "2020.04.28"]
[Round "4"]
[White "Firegrizzly"]
[Black "Sandstad"]
[Result "1-0"]
[WhiteElo "2649"]
[BlackElo "2400"]
[TimeControl "180+1"]
[EndTime "10:38:14 PDT"]
[Termination "Firegrizzly won by resignation"]

1. d4 {[%clk 0:03:00.9]} 1... Nf6 {[%clk 0:02:59.8]} 2. Nf3 {[%clk 0:03:01.8]}
2... e6 {[%clk 0:02:58.4]} 3. Bg5 {[%clk 0:03:01.6]} 3... c5 {[%clk 0:02:57.8]}
4. c3 {[%clk 0:02:57.6]} 4... Nc6 {[%clk 0:02:56.2]} 5. e3 {[%clk 0:02:55.3]}
5... Be7 {[%clk 0:02:56.1]} 6. Nbd2 {[%clk 0:02:54.1]} 6... d5 {[%clk
0:02:55.2]} 7. Bd3 {[%clk 0:02:53.7]} 7... h6 {[%clk 0:02:54.6]} 8. Bh4 {[%clk
0:02:50.7]} 8... b6 {[%clk 0:02:53.8]} 9. Qe2 {[%clk 0:02:49.6]} 9... Bb7 {[%clk
0:02:53.3]} 10. O-O {[%clk 0:02:47.8]} 10... O-O {[%clk 0:02:50.6]} 11. Rad1
{[%clk 0:02:45]} 11... Re8 {[%clk 0:02:43.9]} 12. Rfe1 {[%clk 0:02:43.4]} 12...
Rc8 {[%clk 0:02:40]} 13. Bb1 {[%clk 0:02:43.1]} 13... Qc7 {[%clk 0:02:23.5]} 14.
dxc5 {[%clk 0:02:39.4]} 14... bxc5 {[%clk 0:02:22.2]} 15. e4 {[%clk 0:02:39.1]}
15... d4 {[%clk 0:02:15.4]} 16. Bxf6 {[%clk 0:02:34.3]} 16... Bxf6 {[%clk
0:02:15.1]} 17. e5 {[%clk 0:02:34.3]} 17... Be7 {[%clk 0:02:13.8]} 18. Qe4
{[%clk 0:02:32.5]} 18... g6 {[%clk 0:02:11]} 19. Qg4 {[%clk 0:02:30.7]} 19...
Bf8 {[%clk 0:02:06.4]} 20. Ne4 {[%clk 0:02:24]} 20... Bg7 {[%clk 0:02:05.9]} 21.
Nf6+ {[%clk 0:02:23.4]} 21... Bxf6 {[%clk 0:01:36]} 22. exf6 {[%clk 0:02:24.3]}
22... Kh7 {[%clk 0:01:36.6]} 23. h4 {[%clk 0:02:21]} 23... Rg8 {[%clk
0:01:27.5]} 24. h5 {[%clk 0:02:12.2]} 24... e5 {[%clk 0:01:23]} 25. cxd4 {[%clk
0:02:03.7]} 25... cxd4 {[%clk 0:01:13.5]} 26. Rc1 {[%clk 0:02:00.4]} 26... Qd6
{[%clk 0:01:09.6]} 27. hxg6+ {[%clk 0:01:57]} 27... fxg6 {[%clk 0:01:09.5]} 28.
Qh4 {[%clk 0:01:51.6]} 28... Qf8 {[%clk 0:00:46.8]} 29. f7 {[%clk 0:01:45.8]}
29... Rh8 {[%clk 0:00:43.1]} 30. Ng5+ {[%clk 0:01:42.8]} 30... Kg7 {[%clk
0:00:42.3]} 31. Ne6+ {[%clk 0:01:43.7]} 1-0

[Event "*** Titled Tuesday Blitz"]
[Site "Chess.com"]
[Date "2020.04.28"]
[Round "4"]
[White "A-Fier"]
[Black "JulAnt"]
[Result "1-0"]
[WhiteElo "2801"]
[BlackElo "2522"]
[TimeControl "180+1"]
[EndTime "10:38:17 PDT"]
[Termination "A-Fier won by resignation"]

1. e4 {[%clk 0:03:00.9]} 1... c5 {[%clk 0:03:00]} 2. Nf3 {[%clk 0:03:00.4]} 2...
e6 {[%clk 0:03:00.4]} 3. d4 {[%clk 0:03:00.5]} 3... cxd4 {[%clk 0:03:01.3]} 4.
Nxd4 {[%clk 0:03:00.8]} 4... Nf6 {[%clk 0:03:01.6]} 5. Nc3 {[%clk 0:02:58.1]}
5... d6 {[%clk 0:03:01.9]} 6. g4 {[%clk 0:02:58.3]} 6... h6 {[%clk 0:03:01.5]}
7. h4 {[%clk 0:02:58.5]} 7... Nc6 {[%clk 0:03:01.5]} 8. Rg1 {[%clk 0:02:57.5]}
8... d5 {[%clk 0:03:01.7]} 9. exd5 {[%clk 0:02:57.7]} 9... Nxd5 {[%clk
0:03:02.6]} 10. Nxd5 {[%clk 0:02:58]} 10... exd5 {[%clk 0:03:02.7]} 11. Be3
{[%clk 0:02:58.6]} 11... Qxh4 {[%clk 0:03:02.2]} 12. Qf3 {[%clk 0:02:59]} 12...
Nxd4 {[%clk 0:02:31.2]} 13. Bxd4 {[%clk 0:02:59.9]} 13... Qe7+ {[%clk
0:02:30.3]} 14. Be2 {[%clk 0:03:00.1]} 14... Qe4 {[%clk 0:02:23.2]} 15. O-O-O
{[%clk 0:03:00.6]} 15... Qxf3 {[%clk 0:02:01]} 16. Bxf3 {[%clk 0:03:01.5]} 16...
Be6 {[%clk 0:02:01.1]} 17. Rge1 {[%clk 0:03:02.1]} 17... O-O-O {[%clk
0:02:00.7]} 18. Bxa7 {[%clk 0:02:59.8]} 18... Bd6 {[%clk 0:01:46.9]} 19. Bd4
{[%clk 0:02:57.9]} 19... Rhg8 {[%clk 0:01:38.1]} 20. Kb1 {[%clk 0:02:50.6]}
20... Bf4 {[%clk 0:01:27.2]} 21. Rd3 {[%clk 0:02:48.7]} 21... Rd7 {[%clk
0:01:23.4]} 22. Ra3 {[%clk 0:02:45.9]} 22... Kb8 {[%clk 0:01:06]} 23. Rd1 {[%clk
0:02:34.9]} 23... Rc8 {[%clk 0:00:58.1]} 24. Ba7+ {[%clk 0:02:34.4]} 24... Ka8
{[%clk 0:00:57.8]} 25. Bd4+ {[%clk 0:02:33.6]} 25... Kb8 {[%clk 0:00:56]} 26.
Bxg7 {[%clk 0:02:33.6]} 26... Rc4 {[%clk 0:00:51.4]} 27. Bd4 {[%clk 0:02:30.2]}
27... Rdc7 {[%clk 0:00:48.1]} 28. c3 {[%clk 0:02:30.3]} 28... Rd7 {[%clk
0:00:41.9]} 29. Be2 {[%clk 0:02:28.7]} 29... Rcc7 {[%clk 0:00:36.3]} 30. f3
{[%clk 0:02:29]} 30... f5 {[%clk 0:00:35]} 31. Ra4 {[%clk 0:02:22.1]} 31... Bg5
{[%clk 0:00:26.1]} 32. Ba7+ {[%clk 0:02:20.7]} 32... Kc8 {[%clk 0:00:25.8]} 33.
Bb6 {[%clk 0:02:21.2]} 33... Rd6 {[%clk 0:00:16.9]} 34. Bxc7 {[%clk 0:02:20.8]}
34... Kxc7 {[%clk 0:00:17.2]} 35. Bd3 {[%clk 0:02:19.9]} 35... fxg4 {[%clk
0:00:17]} 36. fxg4 {[%clk 0:02:20.8]} 36... Bxg4 {[%clk 0:00:17.2]} 37. Rxg4
{[%clk 0:02:20.7]} 1-0